bitfinex/quotes_SOLUSD_20230701
["timestamp","ask_amount","ask_price","bid_price","bid_amount"]
[1688206615119,78.023,18.373,18.36,34.94]
[1688206615120,137.294,18.373,18.36,34.94]
[1688206615420,55.0,18.372,18.358,23.041]
[1688206615626,23.027,18.37,18.362,23.036]
[1688206615923,55.0,18.372,18.362,23.036]
[1688206616222,23.025,18.371,18.358,23.04]
[1688206616402,55.0,18.37,18.359,20.0]
[1688206616720,23.029,18.369,18.36,23.038]
[1688206617025,55.0,18.368,18.359,20.0]
[1688206617226,23.032,18.366,18.343,167.69]
[1688206617536,55.0,18.365,18.351,23.049]
[1688206617709,23.038,18.361,18.347,59.352]
[1688206618025,55.0,18.365,18.351,23.05]
[1688206618323,78.034,18.365,18.351,23.05]
[1688206618710,23.034,18.365,18.351,23.05]
[1688206618907,23.039,18.361,18.351,23.05]
[1688206619108,23.04,18.359,18.351,23.05]
[1688206619525,23.04,18.36,18.351,23.05]
[1688206619823,55.0,18.359,18.351,23.05]
[1688206621036,23.04,18.36,18.351,23.05]
[1688206621216,55.0,18.359,18.351,23.05]
[1688206622318,23.037,18.362,18.351,23.05]
[1688206622518,55.0,18.361,18.351,23.05]
[1688206623124,78.038,18.361,18.351,23.05]
[1688206625029,78.038,18.361,18.349,23.052]
[1688206625532,78.038,18.361,18.347,23.054]
[1688206625533,23.044,18.357,18.347,23.054]
[1688206625733,55.0,18.356,18.347,23.054]
[1688206625926,23.043,18.357,18.347,23.054]
[1688206626731,135.10291911,18.365,18.347,23.054]
[1688206626930,59.307,18.357,18.347,23.054]
[1688206627138,59.307,18.357,18.352,23.049]
[1688206627513,23.032,18.366,18.352,23.049]
[1688206628020,132.061502,18.366,18.352,23.049]
[1688206628440,109.029502,18.366,18.352,23.049]
[1688206629037,109.029502,18.366,18.353,55.0]
[1688206629219,132.061502,18.366,18.356,23.043]
[1688206629618,132.061502,18.366,18.352,59.336]
[1688206629619,132.061502,18.366,18.351,98.2567]
[1688206629928,55.0,18.365,18.353,23.046]
[1688206630114,23.037,18.362,18.353,23.046]
[1688206630319,55.0,18.361,18.353,23.046]
[1688206630522,78.038,18.361,18.353,23.046]
[1688206632629,55.0,18.361,18.353,23.046]
[1688206632832,55.0,18.362,18.353,23.046]
[1688206635027,78.037,18.362,18.353,23.046]
[1688206635432,28.037,18.362,18.351,23.049]
[1688206635625,23.037,18.362,18.351,23.049]
[1688206637639,23.04,18.36,18.351,23.049]
[1688206637824,55.0,18.359,18.351,23.049]
[1688206641423,55.0,18.36,18.351,23.049]
[1688206642339,78.039,18.36,18.351,23.049]
[1688206646132,23.039,18.36,18.351,23.049]
[1688206646640,23.035,18.364,18.351,23.049]
[1688206647242,132.061502,18.366,18.351,23.049]
[1688206648429,55.0,18.365,18.351,23.049]
[1688206648626,23.038,18.361,18.351,23.049]
[1688206648827,55.0,18.36,18.351,23.049]
[1688206649030,23.04,18.359,18.351,23.049]
[1688206650729,23.04,18.359,18.345,108.312]
[1688206651639,23.04,18.359,18.344,59.364]
[1688206651839,55.0,18.358,18.344,59.364]
[1688206652141,23.044,18.356,18.346,23.056]
[1688206652343,23.047,18.354,18.346,23.056]
[1688206653049,55.0,18.353,18.346,23.056]
[1688206653832,78.048,18.353,18.346,23.056]
[1688206654146,78.048,18.353,18.345,23.057]
[1688206654439,78.048,18.353,18.343,23.06]
[1688206655345,55.0,18.354,18.343,23.06]
[1688206655546,78.048,18.353,18.343,23.06]
[1688206659436,23.053,18.349,18.336,23.068]
[1688206659952,55.0,18.348,18.336,23.068]
[1688206660243,23.058,18.345,18.336,23.068]
[1688206660541,78.059,18.344,18.336,23.068]
[1688206662140,175.9619,18.344,18.336,23.068]
[1688206664530,97.9029,18.344,18.336,23.068]
[1688206665541,95.8251,18.359,18.331,97.9029]
[1688206665542,23.044,18.356,18.343,23.059]
[1688206665751,23.042,18.358,18.343,23.059]
[1688206666243,35.23,18.356,18.343,23.059]
[1688206670153,55.0,18.355,18.343,23.059]
[1688206670454,23.046,18.354,18.343,23.059]
[1688206670642,78.045,18.355,18.343,23.059]
[1688206671155,55.0,18.355,18.343,23.059]
[1688206672039,78.046,18.355,18.343,23.059]
[1688206676040,78.045,18.355,18.343,23.059]
[1688206683358,413.6626569,18.355,18.343,23.059]
[1688206683747,9.3176569,18.354,18.343,23.059]
[1688206684046,23.049,18.352,18.343,23.059]
[1688206684260,55.0,18.351,18.343,23.059]
[1688206686647,55.0,18.352,18.343,23.059]
[1688206687161,404.349,18.352,18.341,23.061]
[1688206687462,9.3176569,18.351,18.341,23.061]
[1688206687659,9.3176569,18.351,18.334,108.377]
[1688206687660,23.053,18.349,18.334,108.377]
[1688206687846,23.053,18.349,18.34,23.063]
[1688206688164,78.055,18.348,18.34,23.063]
[1688206688343,78.055,18.348,18.333,59.398]
[1688206688344,78.055,18.348,18.338,23.065]
[1688206688544,78.055,18.348,18.333,59.398]
[1688206688545,404.355,18.348,18.334,23.071]
[1688206688741,23.06,18.344,18.334,23.071]
[1688206688963,55.0,18.343,18.334,23.071]
[1688206689151,78.061,18.343,18.334,23.071]
[1688206689658,55.0,18.343,18.334,23.071]
[1688206689864,55.0,18.344,18.334,23.071]
[1688206690249,55.0,18.343,18.334,23.071]
[1688206690646,78.06,18.343,18.334,23.071]
[1688206690866,55.0,18.342,18.334,23.071]
[1688206691157,78.06,18.343,18.334,23.071]
[1688206691367,55.0,18.342,18.334,23.071]
[1688206691549,55.0,18.342,18.326,108.424]
[1688206691865,78.062,18.342,18.332,23.073]
[1688206692367,78.062,18.342,18.327,20.0]
[1688206692570,78.062,18.342,18.326,20.0]
[1688206692867,78.062,18.342,18.326,23.081]
[1688206693062,78.062,18.342,18.328,23.078]
[1688206693370,78.062,18.342,18.329,20.0]
[1688206694176,186.392,18.342,18.329,20.0]
[1688206694373,186.392,18.342,18.328,23.079]
[1688206694669,186.392,18.342,18.329,43.078]
[1688206694851,186.392,18.342,18.329,23.078]
[1688206695052,186.392,18.342,18.325,20.0]
[1688206695366,20.0,18.341,18.323,59.43]
[1688206695557,23.07,18.336,18.328,23.078]
[1688206696147,23.07,18.336,18.324,97.0407]
[1688206696353,23.07,18.336,18.326,23.081]
[1688206697056,55.0,18.335,18.324,97.0407]
[1688206697359,23.074,18.332,18.324,97.0407]
[1688206697567,23.074,18.332,18.321,23.088]
[1688206698269,57.934,18.332,18.318,115.002]
[1688206698563,23.08,18.328,18.319,20.0]
[1688206698866,23.08,18.328,18.319,43.09]
[1688206700065,23.08,18.328,18.319,20.0]
[1688206700247,23.08,18.328,18.319,43.09]
[1688206702050,34.86,18.332,18.319,43.09]
[1688206702264,23.077,18.33,18.319,43.09]
[1688206702648,34.86,18.332,18.319,43.09]
[1688206702966,57.934,18.332,18.319,43.09]
[1688206706067,34.86,18.332,18.323,23.084]
[1688206706264,34.86,18.332,18.326,23.081]
[1688206706473,34.86,18.332,18.328,23.078]
[1688206706649,34.86,18.332,18.33,23.076]
[1688206707050,23.062,18.342,18.33,23.076]
[1688206707251,23.062,18.342,18.33,57.926]
[1688206707452,34.86,18.337,18.33,57.926]
[1688206708656,34.86,18.337,18.33,23.076]
[1688206709062,57.928,18.337,18.33,23.076]
[1688206709571,57.928,18.337,18.328,90.7189]
[1688206709875,57.928,18.337,18.33,23.076]
[1688206710255,34.86,18.337,18.33,23.076]
[1688206711162,34.86,18.337,18.325,83.2588]
[1688206711474,57.928,18.337,18.328,23.078]
[1688206711773,57.928,18.337,18.329,20.0]
[1688206711972,57.928,18.337,18.329,43.077]
[1688206712673,57.928,18.337,18.329,20.0]
[1688206712855,57.928,18.337,18.325,20.0]
[1688206713356,57.928,18.337,18.326,23.081]
[1688206713674,23.069,18.336,18.327,20.0]
[1688206713970,34.86,18.337,18.329,23.077]
[1688206715267,23.069,18.336,18.327,20.0]
[1688206715569,34.86,18.337,18.329,23.077]
[1688206717472,34.86,18.337,18.33,34.82]
[1688206717664,34.86,18.337,18.332,23.074]
[1688206720071,34.86,18.337,18.332,20.574]
[1688206721675,23.06,18.344,18.332,20.574]
[1688206722667,57.88,18.344,18.332,20.574]
[1688206726470,57.88,18.344,18.333,55.0]
[1688206726471,34.82,18.344,18.333,55.0]
[1688206726676,34.82,18.344,18.336,23.068]
[1688206726861,23.052,18.35,18.337,75.0]
[1688206727066,23.052,18.35,18.34,23.063]
[1688206727467,98.052,18.35,18.34,23.063]
[1688206727667,75.0,18.35,18.341,23.061]
[1688206727864,75.0,18.35,18.337,20.0]
[1688206727865,98.052,18.35,18.337,20.0]
[1688206728066,98.052,18.35,18.339,23.064]
[1688206728579,98.052,18.35,18.337,23.067]
[1688206728876,98.052,18.35,18.338,20.0]
[1688206729073,98.052,18.35,18.339,23.065]
[1688206729662,98.052,18.35,18.338,20.0]
[1688206729863,98.052,18.35,18.336,20.0]
[1688206730065,55.0,18.349,18.336,20.0]
[1688206730378,55.0,18.349,18.338,23.065]
[1688206730584,55.0,18.349,18.339,20.0]
[1688206730786,23.055,18.348,18.339,43.064]
[1688206733680,55.0,18.349,18.339,43.064]
[1688206733681,98.052,18.35,18.339,43.064]
[1688206734182,98.052,18.35,18.339,23.064]
[1688206734381,98.052,18.35,18.335,93.6459]
[1688206734582,98.052,18.35,18.336,20.0]
[1688206734883,98.052,18.35,18.339,23.065]
[1688206735085,55.0,18.349,18.339,23.065]
[1688206735274,23.054,18.348,18.339,23.065]
[1688206736373,75.0,18.35,18.339,23.065]
[1688206736771,98.051,18.35,18.339,23.065]
[1688206738371,75.0,18.35,18.339,23.065]
[1688206739289,133.162,18.35,18.337,23.067]
[1688206739490,55.0,18.349,18.337,23.067]
[1688206739787,23.057,18.346,18.337,23.067]
[1688206740088,23.059,18.344,18.337,23.067]
[1688206740677,23.059,18.344,18.335,23.069]
[1688206741077,23.065,18.34,18.33,23.075]
[1688206741293,23.065,18.34,18.329,97.8931]
[1688206741485,55.0,18.343,18.33,23.076]
[1688206742080,23.062,18.342,18.33,23.076]
[1688206742293,55.0,18.341,18.33,23.076]
[1688206742589,78.063,18.341,18.33,23.076]
[1688206745691,23.063,18.341,18.33,23.076]
[1688206746599,97.8931,18.342,18.33,23.076]
[1688206747580,97.8931,18.342,18.334,23.071]
[1688206748190,23.059,18.344,18.334,23.071]
[1688206748597,23.059,18.345,18.334,23.071]
[1688206749701,51.553028,18.345,18.334,23.071]
[1688206753997,51.553028,18.345,18.33,34.82]
[1688206753998,110.915028,18.345,18.33,34.82]
[1688206754203,110.915028,18.345,18.329,97.8931]
[1688206754885,110.915028,18.345,18.33,23.076]
[1688206756000,110.915028,18.345,18.324,92.7408]
[1688206756208,110.915028,18.345,18.328,23.078]
[1688206756501,51.553028,18.345,18.333,23.072]
[1688206757591,28.494028,18.345,18.334,55.0]
[1688206757790,28.494028,18.345,18.337,23.067]
[1688206758089,28.494028,18.345,18.337,23.068]
[1688206758295,51.552028,18.345,18.337,23.068]
[1688206759004,23.059,18.344,18.337,23.067]
[1688206759200,28.494028,18.345,18.337,23.067]
[1688206759403,23.06,18.344,18.333,92.7408]
[1688206759595,23.06,18.344,18.335,23.07]
[1688206759793,28.494028,18.345,18.335,23.07]
[1688206760808,51.552028,18.345,18.335,23.07]
[1688206761101,28.494028,18.345,18.335,23.07]
[1688206761304,51.552028,18.345,18.329,20.0]
[1688206761495,55.0,18.344,18.326,112.9886]
[1688206761696,23.066,18.339,18.331,23.074]
[1688206762107,55.0,18.344,18.331,23.074]
[1688206762310,23.062,18.342,18.331,23.074]
[1688206762506,28.494028,18.345,18.331,23.074]
[1688206762712,51.552028,18.345,18.331,23.074]
[1688206763114,28.494028,18.345,18.331,23.074]
[1688206764007,28.494028,18.345,18.332,55.0]
[1688206764187,28.494028,18.345,18.335,23.069]
[1688206764893,51.552028,18.345,18.335,23.069]
[1688206765511,110.914028,18.345,18.328,108.407]
[1688206765712,51.552028,18.345,18.33,59.407]
[1688206766314,51.552028,18.345,18.335,23.07]
[1688206767311,28.494028,18.345,18.335,23.07]
[1688206767504,28.494028,18.345,18.335,82.464]
[1688206767698,51.552028,18.345,18.335,23.07]
[1688206768513,28.494028,18.345,18.336,55.0]
[1688206768701,26.9102415,18.351,18.338,190.797]
[1688206768899,23.04,18.359,18.34,34.85]
[1688206769118,23.04,18.359,18.345,23.057]
[1688206769802,58.47,18.359,18.345,23.057]
[1688206770002,55.0,18.358,18.345,23.057]
[1688206770199,23.045,18.356,18.345,23.057]
[1688206771410,35.43,18.359,18.345,23.057]
[1688206772616,9.3176569,18.358,18.345,23.057]
[1688206772810,23.046,18.355,18.345,23.057]
[1688206773213,58.471,18.359,18.345,82.419]
[1688206773720,67.7886569,18.359,18.345,82.419]
[1688206773909,55.0,18.358,18.345,23.057]
[1688206774099,23.046,18.355,18.345,23.057]
[1688206775407,9.3176569,18.358,18.345,23.057]
[1688206775610,58.471,18.359,18.345,23.057]
[1688206776823,55.0,18.358,18.345,23.057]
[1688206777117,23.045,18.355,18.345,23.057]
[1688206777315,78.046,18.354,18.345,23.057]
[1688206777520,23.046,18.354,18.345,23.057]
[1688206778220,64.3176569,18.358,18.345,23.057]
[1688206778413,78.042,18.358,18.345,23.057]
[1688206779504,224.0318421,18.358,18.338,59.381]
[1688206779722,102.55218918,18.357,18.339,20.0]
[1688206779919,23.049,18.352,18.342,23.061]
[1688206780118,34.84,18.35,18.34,23.063]
[1688206780317,23.055,18.347,18.338,23.065]
[1688206781017,23.055,18.347,18.328,59.414]
[1688206781018,55.0,18.346,18.328,59.414]
[1688206781218,23.061,18.343,18.329,20.0]
[1688206781724,55.0,18.343,18.335,23.07]
[1688206783516,55.0,18.343,18.329,128.403]
[1688206783517,23.063,18.342,18.329,20.0]
[1688206783714,55.0,18.343,18.332,23.073]
[1688206783914,55.0,18.343,18.332,82.477]
[1688206786017,78.06,18.343,18.332,82.477]
[1688206787910,55.0,18.343,18.332,82.477]
[1688206788629,55.0,18.343,18.336,23.069]
[1688206792122,78.06,18.343,18.334,23.07]
[1688206795635,55.0,18.343,18.334,23.07]
[1688206801534,28.48808156,18.351,18.339,82.443]
[1688206801715,28.48808156,18.351,18.343,23.06]
[1688206801911,86.04623095,18.357,18.343,23.06]
[1688206802143,136.8030488,18.357,18.343,23.06]
[1688206802311,55.0,18.348,18.343,23.06]
[1688206803324,55.0,18.348,18.341,23.062]
[1688206803523,78.054,18.348,18.338,23.065]
[1688206803730,78.054,18.348,18.34,23.063]
[1688206804128,78.054,18.348,18.341,23.062]
[1688206804317,55.0,18.348,18.341,23.062]
[1688206808642,55.0,18.348,18.333,108.378]
[1688206808643,55.0,18.347,18.337,23.067]
[1688206808824,23.058,18.346,18.337,23.067]
[1688206809024,55.0,18.347,18.337,23.067]
[1688206810641,78.055,18.347,18.337,23.067]
[1688206812850,106.54394707,18.347,18.337,23.067]
[1688206813846,106.54394707,18.347,18.331,97.9553]
[1688206813847,106.54394707,18.347,18.335,23.069]
[1688206814942,51.54394707,18.347,18.335,23.069]
[1688206815246,23.055,18.347,18.335,23.069]
[1688206816749,55.0,18.348,18.335,23.069]
[1688206817133,55.0,18.348,18.336,75.0]
[1688206817338,55.0,18.348,18.339,23.064]
[1688206817839,50.75681785,18.357,18.339,23.064]
[1688206818852,23.048,18.353,18.339,23.064]
[1688206819142,55.0,18.348,18.339,23.064]
[1688206820644,73.79981785,18.357,18.345,23.057]
[1688206820834,108.196,18.365,18.345,23.057]
[1688206821033,55.0,18.352,18.345,23.057]
[1688206821246,28.47904879,18.361,18.345,23.057]
[1688206821440,20.0,18.36,18.345,23.057]
[1688206822042,23.041,18.359,18.345,23.057]
[1688206824536,55.0,18.36,18.345,23.057]
[1688206824946,23.041,18.359,18.345,23.057]
[1688206825449,55.0,18.36,18.345,23.057]
[1688206825650,78.039,18.36,18.345,23.057]
[1688206826047,78.039,18.36,18.346,55.0]
[1688206826232,55.0,18.36,18.35,23.05]
[1688206827229,78.039,18.36,18.346,55.0]
[1688206827437,78.039,18.36,18.347,20.0]
[1688206828536,78.039,18.36,18.346,20.0]
[1688206828858,78.039,18.36,18.349,23.052]
[1688206829040,55.0,18.359,18.347,23.054]
[1688206829245,23.044,18.356,18.345,23.057]
[1688206833543,23.044,18.356,18.345,22.95615734]
[1688206836052,55.0,18.355,18.343,23.059]
[1688206836255,23.05,18.352,18.343,22.559]
[1688206838054,55.0,18.351,18.343,22.559]
[1688206838437,23.047,18.354,18.343,22.559]
[1688206838756,55.0,18.353,18.343,22.559]
[1688206838943,23.047,18.354,18.343,22.559]
[1688206840352,23.044,18.356,18.343,22.559]
[1688206840654,23.042,18.358,18.347,23.054]
[1688206841236,55.0,18.36,18.347,23.054]
[1688206841438,55.0,18.36,18.351,23.049]
[1688206841643,78.04,18.36,18.348,75.0]
[1688206842556,55.0,18.36,18.351,23.05]
[1688206843453,55.0,18.36,18.351,82.392]
[1688206843642,23.034,18.364,18.354,23.046]
[1688206844246,78.034,18.364,18.354,23.046]
[1688206851860,26.86241763,18.371,18.355,20.0]
[1688206852068,59.246,18.381,18.36,35.11]
[1688206852364,22.52,18.375,18.364,23.033]
[1688206853143,57.63,18.375,18.364,23.033]
[1688206853565,57.63,18.375,18.36,45.94719922]
[1688206853751,57.63,18.375,18.361,55.0]
[1688206854864,57.63,18.375,18.363,23.034]
[1688206855662,57.63,18.375,18.364,55.0]
[1688206855866,57.63,18.375,18.365,23.032]
[1688206859771,116.895,18.375,18.359,92.2035]
[1688206859976,55.0,18.374,18.36,78.01375081]
[1688206860176,23.026,18.37,18.361,23.036]
[1688206860861,55.0,18.374,18.361,23.036]
[1688206860862,23.022,18.374,18.361,23.036]
[1688206862061,35.11,18.375,18.364,23.033]
[1688206862672,35.11,18.375,18.368,23.029]
[1688206862857,58.13,18.375,18.365,55.0]
[1688206863053,58.131,18.375,18.366,23.03]
[1688206863670,35.11,18.375,18.366,23.03]
[1688206864173,50.55969302,18.381,18.367,55.0]
[1688206864468,23.014,18.38,18.371,23.025]
[1688206864856,23.014,18.38,18.368,20.0]
[1688206865263,23.011,18.382,18.372,23.023]
[1688206865571,23.014,18.38,18.368,20.0]
[1688206865777,23.014,18.38,18.372,23.023]
[1688206866669,59.232,18.382,18.372,23.023]
[1688206866975,82.243,18.382,18.372,23.023]
[1688206868775,59.232,18.382,18.372,23.023]
[1688206868958,59.232,18.382,18.372,82.297]
[1688206869269,59.232,18.382,18.372,23.023]
[1688206869478,82.243,18.382,18.372,23.023]
[1688206870772,59.232,18.382,18.372,23.023]
[1688206871078,59.232,18.382,18.373,55.0]
[1688206871253,97.1211,18.398,18.381,23.011]
[1688206871459,22.996,18.394,18.381,23.011]
[1688206873259,59.195,18.395,18.381,82.256]
[1688206873461,22.997,18.394,18.381,81.756]
[1688206873663,23.001,18.391,18.381,22.511]
[1688206877278,55.0,18.39,18.381,22.511]
[1688206877592,78.002,18.39,18.381,23.012]
[1688206880173,55.0,18.39,18.381,23.012]
[1688206880578,55.0,18.391,18.381,23.012]
[1688206880784,78.0,18.391,18.381,23.012]
[1688206880988,55.11,18.39,18.374,95.2707]
[1688206881292,23.007,18.386,18.367,59.288]
[1688206881585,55.0,18.385,18.372,23.023]
[1688206882281,78.008,18.385,18.372,23.023]
[1688206882485,137.288,18.385,18.372,23.023]
[1688206883079,289.07613356,18.389,18.372,23.023]
[1688206883283,55.0,18.388,18.372,23.023]
[1688206883798,23.008,18.385,18.372,23.023]
[1688206884493,82.235,18.385,18.372,23.023]
[1688206885587,59.227,18.385,18.372,131.176]
[1688206885893,59.227,18.385,18.373,55.0]
[1688206886091,59.227,18.385,18.376,82.278]
[1688206886281,59.202,18.395,18.377,75.0]
[1688206886482,59.202,18.395,18.383,23.01]
[1688206886483,23.001,18.391,18.383,23.01]
[1688206887591,82.203,18.391,18.383,23.01]
[1688206888895,82.203,18.391,18.381,23.011]
[1688206889590,33.03151904,18.399,18.381,23.011]
[1688206889897,23.001,18.391,18.382,28.39697472]
[1688206890093,23.001,18.391,18.382,23.01]
[1688206890495,82.198,18.391,18.382,23.01]
[1688206892891,59.197,18.391,18.382,23.01]
[1688206893075,398.5,18.407,18.383,55.0]
[1688206893282,22.99,18.4,18.39,23.001]
[1688206893476,22.986,18.402,18.39,23.001]
[1688206893685,22.984,18.404,18.39,23.001]
[1688206893989,22.984,18.404,18.391,58.36494925]
[1688206894187,22.984,18.404,18.394,22.995]
[1688206895186,28.42524335,18.415,18.394,131.019]
[1688206895489,107.89,18.417,18.401,22.987]
[1688206895695,213.91731785,18.42,18.401,22.987]
[1688206895696,22.97,18.416,18.401,22.987]
[1688206895880,174.88,18.42,18.401,22.987]
[1688206895881,34.9,18.42,18.401,22.987]
[1688206896081,22.97,18.415,18.401,22.987]
[1688206896498,57.87,18.415,18.401,22.987]
[1688206896702,57.871,18.415,18.396,167.202]
[1688206896886,20.0,18.414,18.401,22.987]
[1688206897090,20.0,18.414,18.39,34.92]
[1688206897091,22.976,18.411,18.399,22.989]
[1688206897286,54.9,18.41,18.397,22.992]
[1688206897600,22.981,18.407,18.389,94.8801]
[1688206897903,22.981,18.407,18.395,22.994]
[1688206898082,22.985,18.403,18.389,154.0991]
[1688206898284,22.985,18.403,18.393,22.996]
[1688206899104,55.0,18.402,18.393,22.996]
[1688206899304,77.986,18.402,18.393,22.996]
[1688206899499,132.986,18.402,18.393,22.996]
[1688206900002,55.0,18.402,18.393,22.996]
[1688206900294,77.986,18.402,18.393,22.996]
[1688206901104,77.986,18.402,18.389,94.8801]
[1688206901280,77.986,18.402,18.39,20.0]
[1688206901486,77.986,18.402,18.393,22.997]
[1688206901687,55.0,18.402,18.393,22.997]
[1688206902204,22.982,18.406,18.393,22.997]
[1688206902601,22.997,18.402,18.393,22.997]
[1688206907009,22.983,18.405,18.394,55.0]
[1688206907194,22.983,18.405,18.397,22.992]
[1688206907591,77.883,18.405,18.397,22.992]
[1688206908091,54.9,18.405,18.397,22.992]
[1688206909096,22.978,18.409,18.398,55.0]
[1688206909409,22.978,18.409,18.401,22.987]
[1688206909716,45.956,18.409,18.401,22.987]
[1688206910099,22.978,18.409,18.401,22.987]
[1688206913504,45.956,18.409,18.398,151.2001]
[1688206913711,22.978,18.409,18.401,22.987]
[1688206914914,45.956,18.409,18.398,96.2001]
[1688206915115,45.956,18.409,18.399,20.0]
[1688206915315,22.978,18.409,18.4,22.988]
[1688206915914,45.955,18.409,18.4,22.988]
[1688206916120,22.978,18.409,18.4,22.988]
[1688206917610,45.956,18.409,18.4,22.988]
[1688206917818,55.0,18.408,18.397,22.991]
[1688206918113,22.983,18.405,18.397,22.991]
[1688206918715,22.981,18.407,18.397,22.991]
[1688206920506,22.981,18.407,18.396,22.993]
[1688206920816,22.981,18.407,18.391,91.3054]
[1688206920817,22.981,18.407,18.392,2.9278641]
[1688206921024,22.981,18.407,18.392,55.0]
[1688206921813,22.981,18.407,18.396,22.993]
[1688206922201,82.143,18.407,18.392,55.0]
[1688206923911,82.143,18.407,18.391,91.3054]
[1688206924803,82.143,18.407,18.394,22.995]
[1688206925314,22.981,18.407,18.394,22.995]
[1688206925511,22.981,18.407,18.395,75.0]
[1688206925719,22.981,18.407,18.398,22.99]
[1688206925919,22.981,18.407,18.399,75.0]
[1688206926107,22.981,18.407,18.399,97.989]
[1688206926312,22.981,18.407,18.399,42.989]
[1688206928105,22.981,18.407,18.392,59.208]
[1688206928320,55.0,18.406,18.392,59.208]
[1688206928605,22.985,18.403,18.395,22.994]
[1688206928800,22.983,18.405,18.395,22.994]
[1688206929729,22.978,18.409,18.395,82.194]
[1688206929916,22.978,18.409,18.396,55.0]
[1688206930115,22.982,18.406,18.398,22.99]
[1688206930616,22.982,18.406,18.396,55.0]
[1688206930925,22.981,18.406,18.396,22.992]
[1688206931136,22.981,18.406,18.398,22.991]
[1688206933020,22.981,18.406,18.399,55.0]
[1688206933223,22.981,18.406,18.399,22.99]
[1688206933412,22.978,18.409,18.4,75.0]
[1688206933612,9.3176569,18.415,18.401,22.987]
[1688206933913,22.978,18.409,18.401,22.987]
[1688206934122,22.978,18.409,18.4,20.0]
[1688206934423,32.2956569,18.409,18.386,59.229]
[1688206934610,32.2956569,18.409,18.394,22.996]
[1688206934806,22.984,18.404,18.394,22.996]